bitfinex/quotes_SOLUSD_20250903
["timestamp","ask_amount","ask_price","bid_price","bid_amount"]
[1756897569322,0.2,210.72,210.71,40.91801348]
[1756897575046,0.2,210.72,210.71,37.42]
[1756897575416,0.2,210.72,210.69,2.60190904]
[1756897575648,0.2,210.72,210.7,37.4]
[1756897575946,0.86,210.72,210.7,37.4]
[1756897576144,0.2,210.72,210.7,37.4]
[1756897576345,0.66,210.71,210.65,2.83801348]
[1756897576528,3.49801348,210.7,210.66,34.96]
[1756897576729,0.66,210.7,210.66,34.96]
[1756897577246,0.66,210.7,210.65,2.83801348]
[1756897577247,2.83801348,210.71,210.65,2.83801348]
[1756897577548,0.2,210.72,210.65,2.83801348]
[1756897577549,0.66,210.69,210.66,37.4]
[1756897578440,0.66,210.68,210.61,2.83801348]
[1756897578745,3.49801348,210.67,210.62,37.4]
[1756897579044,0.2,210.72,210.67,13.59559401]
[1756897579240,0.2,210.72,210.71,2.83801348]
[1756897579438,0.2,210.72,210.71,40.89801348]
[1756897579745,0.2,210.72,210.71,41.59801348]
[1756897581551,0.2,210.72,210.71,38.76]
[1756897581852,0.2,210.72,210.71,40.85801348]
[1756897582053,0.2,210.72,210.71,38.02]
[1756897582250,0.2,210.72,210.71,41.55801348]
[1756897584625,0.2,210.72,210.71,121.25801348]
[1756897585938,0.2,210.72,210.71,79.7]
[1756897586257,0.2,210.72,210.71,117.68]
[1756897586457,3.69801348,210.72,210.71,37.98]
[1756897587279,0.86,210.72,210.71,37.98]
[1756897587561,3.69801348,210.72,210.71,37.98]
[1756897588435,0.86,210.72,210.71,37.98]
[1756897588638,3.69801348,210.72,210.71,37.98]
[1756897589065,0.2,210.72,210.71,37.98]
[1756897589250,0.2,210.72,210.71,55.39793063]
[1756897589452,0.2,210.72,210.71,43.41938008]
[1756897589840,0.2,210.72,210.71,5.43938008]
[1756897590036,0.2,210.72,210.71,67.91801348]
[1756897590241,0.2,210.72,210.71,41.91801348]
[1756897591666,0.2,210.72,210.71,38.36]
[1756897592673,0.86,210.72,210.68,6.88703814]
[1756897592970,0.2,210.72,210.69,38.36]
[1756897593865,0.66,210.71,210.69,38.36]
[1756897594059,0.2,210.72,210.7,6.88703814]
[1756897594254,0.2,210.72,210.7,7.58703814]
[1756897594977,0.2,210.72,210.71,47.18263215]
[1756897595179,0.2,210.72,210.71,21.46695529]
[1756897595672,0.2,210.72,210.71,24.62191541]
[1756897596157,0.2,210.72,210.71,52.69559401]
[1756897596358,0.2,210.72,210.71,24.33759227]
[1756897596555,0.2,210.72,210.71,64.63913965]
[1756897596966,0.2,210.72,210.71,90.63913965]
[1756897598855,0.2,210.77,210.76,45.19128341]
[1756897599074,0.2,210.77,210.76,63.08191541]
[1756897601169,0.2,210.77,210.76,63.06191541]
[1756897601375,0.2,210.77,210.76,26.52273989]
[1756897601555,0.2,210.77,210.76,120.00082448]
[1756897601756,0.2,210.77,210.76,11.94282274]
[1756897602069,0.2,210.77,210.76,1.90082448]
[1756897602276,0.2,210.77,210.74,26.0]
[1756897602475,0.2,210.77,210.75,38.42]
[1756897602673,0.2,210.77,210.74,10.04199826]
[1756897602881,0.2,210.77,210.75,38.42]
[1756897603064,0.2,210.77,210.76,10.04199826]
[1756897603266,0.2,210.77,210.76,10.76199826]
[1756897603455,0.2,210.77,210.76,24.35759227]
[1756897603874,0.2,210.77,210.76,23.63759227]
[1756897604256,0.2,210.77,210.76,62.05759227]
[1756897604573,0.2,210.77,210.76,62.77759227]
[1756897604961,0.06264377,210.86,210.85,13.59559401]
[1756897605303,0.06264377,210.86,210.85,62.17759227]
[1756897605586,0.06264377,210.86,210.85,62.97759227]
[1756897606287,0.06264377,210.86,210.85,62.95759227]
[1756897606789,0.06264377,210.86,210.85,49.36199826]
[1756897606979,0.06264377,210.86,210.85,10.04199826]
[1756897607387,0.06264377,210.86,210.85,48.66199826]
[1756897607760,0.06264377,210.86,210.85,38.62]
[1756897607954,0.06264377,210.86,210.82,26.72]
[1756897607955,0.06264377,210.86,210.84,10.04199826]
[1756897608270,0.77264377,210.86,210.84,10.04199826]
[1756897608469,0.77264377,210.86,210.85,23.04]
[1756897608885,0.83264377,210.86,210.79,0.72]
[1756897609060,0.83264377,210.86,210.77,0.72]
[1756897609261,0.83264377,210.86,210.81,10.04199826]
[1756897609456,0.71,210.85,210.82,30.7]
[1756897609659,0.71,210.85,210.82,40.74199826]
[1756897610782,0.71,210.85,210.77,26.72]
[1756897610968,0.71,210.85,210.81,10.04199826]
[1756897611288,0.71,210.85,210.82,38.54]
[1756897611590,0.12264377,210.86,210.85,39.59559401]
[1756897611760,0.12264377,210.86,210.85,88.89759227]
[1756897612701,0.12264377,210.86,210.85,48.80199826]
[1756897615073,0.06,210.91,210.85,48.80199826]
[1756897615372,0.06,210.91,210.86,10.04199826]
[1756897615571,0.06,210.91,210.87,38.7]
[1756897616993,0.14,210.91,210.87,38.7]
[1756897617481,0.06,210.91,210.87,38.7]
[1756897619070,0.06,210.91,210.88,38.64]
[1756897619267,0.06,210.91,210.85,10.04199826]
[1756897619592,0.14,210.91,210.86,38.6]
[1756897619770,0.06,210.91,210.86,38.6]
[1756897619969,1.39262637,210.88,210.81,10.04199826]
[1756897620197,10.04199826,210.88,210.82,48.64199826]
[1756897620406,10.04199826,210.88,210.78,26.0]
[1756897620407,10.04199826,210.85,210.78,0.72]
[1756897620584,26.0,210.86,210.79,38.62]
[1756897620778,10.04199826,210.82,210.8,38.62]
[1756897621101,10.04199826,210.81,210.8,38.62]
[1756897621899,10.04199826,210.81,210.73,0.72]
[1756897622098,26.0,210.82,210.74,38.6]
[1756897622398,10.04199826,210.78,210.74,38.6]
[1756897623604,10.04199826,210.79,210.74,38.6]
[1756897623967,26.0,210.86,210.77,10.04199826]
[1756897624184,10.04199826,210.83,210.78,39.3]
[1756897624720,10.04199826,210.84,210.79,0.72]
[1756897625003,38.6,210.93,210.81,10.04199826]
[1756897625004,10.04199826,210.87,210.81,10.04199826]
[1756897625177,10.04199826,210.86,210.77,0.72]
[1756897625381,10.04199826,210.83,210.78,38.62]
[1756897625615,10.04199826,210.82,210.79,38.62]
[1756897625989,39.59559401,210.85,210.79,38.62]
[1756897626198,10.04199826,210.82,210.79,38.62]
[1756897626398,10.04199826,210.81,210.79,38.62]
[1756897626907,10.04199826,210.8,210.78,38.6]
[1756897627113,10.04199826,210.79,210.78,38.6]
[1756897629113,10.04199826,210.8,210.78,38.6]
[1756897629616,39.65559401,210.86,210.78,38.6]
[1756897629912,39.65559401,210.86,210.79,10.76199826]
[1756897629913,10.04199826,210.85,210.79,10.76199826]
[1756897630111,0.06,210.86,210.79,0.72]
[1756897630328,10.04199826,210.83,210.78,38.6]
[1756897630695,10.04199826,210.82,210.78,38.6]
[1756897630899,10.04199826,210.8,210.77,0.03]
[1756897631610,10.04199826,210.81,210.77,0.03]
[1756897633518,13.59559401,210.83,210.77,0.03]
[1756897633721,10.04199826,210.81,210.77,0.03]
[1756897634292,0.06,210.86,210.78,10.73199826]
[1756897634625,10.04199826,210.84,210.78,0.69]
[1756897634923,13.59559401,210.85,210.78,0.69]
[1756897635215,10.04199826,210.8,210.77,0.03]
[1756897635516,26.0,210.82,210.77,0.03]
[1756897635903,10.04199826,210.8,210.77,0.03]
[1756897636301,26.0,210.82,210.77,0.03]
[1756897636808,10.04199826,210.84,210.78,10.73199826]
[1756897637528,0.06,210.86,210.78,10.73199826]
[1756897637695,0.06,210.86,210.81,10.04199826]
[1756897637891,0.06,210.86,210.81,38.5]
[1756897638106,0.06,210.86,210.8,38.5]
[1756897638317,10.04199826,210.84,210.8,38.5]
[1756897638523,10.04199826,210.84,210.8,39.19]
[1756897638730,10.04199826,210.84,210.81,0.69]
[1756897638905,10.04199826,210.83,210.77,10.07199826]
[1756897639098,10.04199826,210.81,210.77,38.53]
[1756897639305,10.04199826,210.81,210.77,39.22]
[1756897640003,10.04199826,210.81,210.78,0.69]
[1756897640229,10.04199826,210.83,210.79,0.69]
[1756897640729,10.04199826,210.83,210.8,0.69]
[1756897640912,10.04199826,210.81,210.77,38.53]
[1756897641093,10.04199826,210.8,210.77,38.53]
[1756897641299,10.04199826,210.8,210.77,39.22]
[1756897642926,10.04199826,210.81,210.77,39.22]
[1756897643815,10.04199826,210.81,210.78,0.69]
[1756897644124,10.04199826,210.82,210.79,0.69]
[1756897644618,10.04199826,210.82,210.77,39.22]
[1756897644800,10.04199826,210.82,210.78,0.69]
[1756897646107,13.59559401,210.85,210.77,38.53]
[1756897646330,10.04199826,210.81,210.78,0.69]
[1756897646533,13.59559401,210.85,210.78,0.69]
[1756897646719,10.04199826,210.82,210.79,0.69]
[1756897647624,10.04199826,210.81,210.77,38.53]
[1756897647835,10.04199826,210.8,210.77,38.53]
[1756897648021,10.04199826,210.79,210.77,0.03]
[1756897650730,10.04199826,210.8,210.77,0.72]
[1756897651632,10.04199826,210.8,210.78,0.69]
[1756897652123,26.0,210.82,210.79,0.69]
[1756897653417,26.0,210.82,210.77,10.76199826]
[1756897653715,26.0,210.82,210.78,0.69]
[1756897653933,26.0,210.82,210.79,0.69]
[1756897654134,26.0,210.81,210.8,0.69]
[1756897654336,26.0,210.81,210.78,0.69]
[1756897654830,26.0,210.81,210.79,0.69]
[1756897657516,26.0,210.82,210.79,0.69]
[1756897658021,32.88369479,210.82,210.79,0.69]
[1756897659521,32.88369479,210.82,210.77,38.21]
[1756897659720,32.88369479,210.82,210.78,0.69]
[1756897661819,32.88369479,210.82,210.77,38.17]
[1756897662039,26.0,210.82,210.78,0.67]
[1756897662240,32.88369479,210.82,210.78,0.67]
[1756897664517,6.88369479,210.81,210.77,0.03]
[1756897665018,6.88369479,210.81,210.78,0.67]
[1756897665353,6.88369479,210.81,210.77,0.03]
[1756897665545,6.88369479,210.81,210.77,0.7]
[1756897667542,32.88369479,210.82,210.77,0.03]
[1756897668420,6.88369479,210.81,210.77,0.03]
[1756897671222,6.88369479,210.81,210.77,0.03]
[1756897671631,6.88369479,210.81,210.77,0.7]
[1756897672238,6.88369479,210.81,210.77,0.03]
[1756897673042,26.0,210.82,210.78,0.67]
[1756897673239,26.0,210.82,210.79,0.67]
[1756897673459,26.0,210.82,210.77,0.03]
[1756897673635,26.0,210.82,210.77,0.7]
[1756897673963,26.0,210.82,210.78,0.67]
[1756897674539,26.0,210.82,210.77,0.03]
[1756897674738,26.0,210.82,210.77,0.7]
[1756897675854,26.0,210.82,210.77,0.03]
[1756897676052,26.0,210.82,210.77,0.7]
[1756897676357,26.0,210.82,210.78,0.67]
[1756897677030,26.0,210.82,210.77,0.03]
[1756897677246,26.0,210.82,210.77,0.7]
[1756897678455,28.832523,210.82,210.77,0.03]
[1756897678661,2.832523,210.81,210.77,0.03]
[1756897678828,28.832523,210.82,210.77,0.03]
[1756897679239,26.0,210.82,210.78,3.502523]
[1756897679442,26.0,210.82,210.79,0.67]
[1756897680145,26.0,210.82,210.78,2.832523]
[1756897680346,26.0,210.82,210.78,3.502523]
[1756897681537,26.0,210.82,210.79,0.67]
[1756897682642,26.0,210.82,210.77,2.862523]
[1756897682964,26.0,210.82,210.78,0.67]
[1756897683156,26.0,210.82,210.79,0.67]
[1756897684662,0.06,210.86,210.81,2.832523]
[1756897684863,0.06,210.86,210.83,2.832523]
[1756897685159,0.06,210.86,210.84,3.502523]
[1756897685543,0.06,210.86,210.83,37.82]
[1756897686342,0.06,210.86,210.83,38.49]
[1756897687164,0.06,210.86,210.83,0.67]
[1756897688458,0.06,210.86,210.84,0.67]
[1756897688844,0.06,210.86,210.85,0.67]
[1756897689044,0.06,210.86,210.83,2.832523]
[1756897689264,0.06,210.86,210.84,0.67]
[1756897693445,0.06,210.86,210.85,0.69]
[1756897693651,0.06,210.86,210.85,3.522523]
[1756897700960,0.06,210.86,210.85,0.69]
[1756897701270,0.06,210.86,210.85,3.522523]
[1756897703750,0.06,210.86,210.85,83.222523]
[1756897706176,0.06,210.86,210.85,83.252523]
[1756897706351,0.06,210.86,210.85,120.832523]
[1756897710576,0.06,210.86,210.85,83.252523]
[1756897710751,0.06,210.86,210.85,120.772523]
[1756897712776,0.06,210.86,210.85,83.252523]
[1756897712977,0.06,210.86,210.85,80.42]
[1756897713179,0.06,210.86,210.85,120.732523]
[1756897713364,0.06,210.86,210.85,83.252523]
[1756897713678,0.06,210.86,210.85,120.732523]
[1756897714080,0.06,210.86,210.85,83.252523]
[1756897714279,0.06,210.86,210.85,80.42]
[1756897714577,0.06,210.86,210.85,117.88]
[1756897714778,0.06,210.86,210.85,120.712523]
[1756897716483,0.06,210.86,210.85,83.252523]
[1756897716780,0.06,210.86,210.85,120.712523]
[1756897719579,0.06,210.86,210.85,122.30075334]
[1756897721062,0.06,210.86,210.85,121.55075334]
[1756897721772,0.06,210.86,210.85,122.24075334]
[1756897722879,0.06,210.86,210.85,121.55075334]
[1756897723085,0.06,210.86,210.85,117.13]
[1756897723273,0.06,210.86,210.85,79.73]
[1756897723468,0.06,210.86,210.85,37.41]
[1756897726568,0.06,210.86,210.85,42.52075334]
[1756897727258,0.06,210.86,210.85,44.42130687]
[1756897727663,0.06,210.86,210.85,39.31055353]
[1756897727871,0.06,210.86,210.85,40.00055353]
[1756897728070,0.06,210.86,210.85,44.42130687]
[1756897728485,0.06,210.86,210.85,40.00055353]
[1756897728677,0.06,210.86,210.85,44.42130687]
[1756897734306,0.06,210.86,210.85,58.01690088]
[1756897734470,0.06,210.86,210.85,44.38130687]
[1756897735088,0.06,210.86,210.85,124.08130687]
[1756897736876,0.06,210.86,210.85,82.32055353]
[1756897737075,0.06,210.86,210.85,123.39130687]
[1756897737281,0.06,210.86,210.85,96.39130687]
[1756897737681,0.06,210.86,210.85,110.64613569]
[1756897738186,0.06,210.86,210.85,106.22538235]
[1756897738390,0.06,210.86,210.85,110.64613569]
[1756897738595,0.06,210.86,210.85,73.30613569]
[1756897738795,0.06,210.86,210.85,111.31613569]
[1756897739015,0.06,210.86,210.85,56.68558216]
[1756897739684,0.06,210.86,210.85,124.9117297]
[1756897740198,0.06,210.86,210.85,56.68558216]
[1756897740698,0.06,210.86,210.85,19.36558216]
[1756897740874,0.06,210.86,210.85,14.25482882]
[1756897741078,0.06,210.86,210.85,37.32]
[1756897741275,0.06,210.86,210.85,46.16150668]
[1756897741704,0.06,210.86,210.82,4.45075334]
[1756897741900,0.06,210.86,210.83,37.32]
[1756897742676,0.06,210.86,210.83,41.74075334]
[1756897743590,4.48075334,210.86,210.82,0.03]
[1756897744305,0.06,210.86,210.82,38.04]
[1756897744493,30.48075334,210.86,210.82,0.03]
[1756897744696,26.0,210.83,210.82,0.03]
[1756897749615,0.06,210.86,210.82,0.03]
[1756897749616,26.06,210.86,210.82,4.45075334]
[1756897749824,26.06,210.86,210.83,4.42075334]
[1756897750002,26.0,210.84,210.82,4.45075334]
[1756897750309,26.0,210.84,210.82,0.03]
[1756897751307,26.0,210.84,210.82,4.45075334]
[1756897751513,0.06,210.86,210.83,5.11075334]
[1756897751809,0.06,210.86,210.84,37.36]
[1756897752511,0.06,210.86,210.85,0.67]
[1756897752716,0.06,210.86,210.85,5.09075334]
[1756897753918,0.06,210.86,210.83,4.42075334]
[1756897754131,0.06,210.86,210.84,37.34]
[1756897754423,26.06,210.86,210.84,37.34]
[1756897755294,0.06,210.86,210.85,5.09075334]
[1756897756114,0.06,210.86,210.84,41.76075334]
[1756897756415,0.06,210.86,210.84,42.43075334]
[1756897756609,0.06,210.86,210.85,0.67]
[1756897757426,0.06,210.86,210.83,14.25686112]
[1756897757624,0.06,210.86,210.84,37.36]
[1756897757799,0.06,210.86,210.82,54.66055353]
[1756897757800,0.06,210.86,210.82,92.02055353]
[1756897758221,0.06,210.86,210.82,92.69055353]
[1756897758407,0.06,210.86,210.83,0.67]
[1756897758798,26.06,210.86,210.83,0.67]
[1756897758998,26.06,210.86,210.84,37.36]
[1756897763021,26.06,210.86,210.84,37.39]
[1756897763536,26.06,210.86,210.84,38.06]
[1756897763721,26.06,210.86,210.84,41.81075334]
[1756897763919,26.06,210.86,210.84,37.39]
[1756897766320,26.06,210.86,210.84,0.7]
[1756897766522,26.06,210.86,210.84,0.03]
[1756897769335,4.42075334,210.85,210.84,0.03]
[1756897769641,34.84150668,210.85,210.84,0.03]
[1756897769841,48.43710069,210.85,210.84,0.03]
[1756897776038,44.01634735,210.85,210.84,0.03]
[1756897776241,48.43710069,210.85,210.84,0.03]
[1756897777031,85.67710069,210.85,210.84,0.03]
[1756897778634,81.25634735,210.85,210.84,0.03]
[1756897778946,85.67710069,210.85,210.84,0.03]
[1756897779521,84.0895948,210.85,210.84,0.03]
[1756897784450,104.0895948,210.85,210.84,0.03]
[1756897786326,101.25634735,210.85,210.84,0.03]
[1756897786532,104.0895948,210.85,210.84,0.03]
[1756897788348,44.01634735,210.85,210.84,0.03]
[1756897788658,84.0895948,210.85,210.84,0.03]
[1756897789031,104.0895948,210.85,210.84,0.03]
[1756897789231,84.0895948,210.85,210.84,0.03]
[1756897789452,104.0895948,210.85,210.84,0.03]
[1756897789643,84.0895948,210.85,210.84,0.03]
[1756897789843,104.0895948,210.85,210.84,0.03]
[1756897790258,84.0895948,210.85,210.84,0.03]
[1756897790554,104.0895948,210.85,210.84,0.03]
[1756897790757,84.0895948,210.85,210.84,0.03]
[1756897791057,104.0895948,210.85,210.84,0.03]
[1756897791242,84.0895948,210.85,210.84,0.03]
[1756897791439,104.0895948,210.85,210.84,0.03]
[1756897792461,84.0895948,210.85,210.84,0.03]
[1756897792664,104.0895948,210.85,210.84,0.03]
[1756897794754,84.0895948,210.85,210.84,0.03]
[1756897794945,46.8495948,210.85,210.84,0.72]
[1756897795143,30.42075334,210.85,210.84,0.72]
[1756897795356,4.42075334,210.85,210.84,0.72]
[1756897795537,7.25400079,210.85,210.84,0.72]
[1756897795863,29.70075334,210.85,210.84,0.72]
[1756897796163,0.06,210.86,210.84,3.55324745]
[1756897796670,0.06,210.86,210.85,0.69]
[1756897797262,26.06,210.86,210.85,0.69]
[1756897801661,0.06,210.86,210.85,3.52324745]
[1756897802765,0.06,210.86,210.85,0.69]
[1756897802980,0.06,210.86,210.85,3.52324745]
[1756897804155,0.06,210.86,210.85,0.69]
[1756897804363,0.06,210.86,210.85,3.52324745]
[1756897806143,0.06,210.86,210.85,5.42398161]
[1756897806665,0.06,210.88,210.85,5.42398161]
[1756897806848,0.06,210.89,210.87,2.83324745]
[1756897807167,0.06,210.89,210.88,2.83324745]
[1756897807363,0.06,210.89,210.88,5.42398161]
[1756897809150,0.06,210.89,210.88,2.59073416]
[1756897809470,0.06,210.89,210.88,5.42398161]
[1756897811068,0.06,210.89,210.88,42.64398161]
[1756897812079,0.06,210.89,210.88,5.42398161]
[1756897812386,0.06,210.89,210.88,42.64398161]
[1756897817156,0.06,210.89,210.88,39.81073416]
[1756897817352,0.06,210.89,210.88,42.64398161]
[1756897818660,0.06,210.89,210.88,42.62398161]
[1756897819876,0.06,210.89,210.88,39.79073416]
[1756897820266,0.06,210.89,210.88,42.62398161]
[1756897823976,0.06,210.89,210.88,5.42398161]
[1756897824182,0.06,210.89,210.88,42.62398161]
[1756897824981,0.06,210.89,210.88,135.91957562]
[1756897825858,0.06,210.89,210.88,122.32398161]
[1756897826082,0.06,210.89,210.88,37.2]
[1756897826873,0.06,210.89,210.88,40.03324745]
[1756897827069,0.06,210.89,210.88,40.75324745]
[1756897829987,0.06,210.89,210.88,3.55324745]
[1756897830185,0.06,210.89,210.88,40.75324745]
[1756897830788,0.06,210.89,210.88,37.92]
[1756897830967,0.06,210.89,210.88,40.75324745]
[1756897831163,0.06,210.89,210.88,40.03324745]
[1756897831680,0.06,210.89,210.88,40.75324745]
[1756897832202,0.06,210.89,210.88,54.34884146]
[1756897832975,0.06,210.89,210.88,56.24885333]
[1756897833376,0.06,210.89,210.88,56.22885333]
[1756897834698,0.06,210.89,210.88,19.04885333]
[1756897834875,0.06,210.89,210.88,28.62001187]
[1756897835077,0.06,210.89,210.88,68.63325932]
[1756897835700,0.06,210.89,210.88,31.45325932]
[1756897835899,0.06,210.89,210.85,0.75]
[1756897836196,0.06,210.89,210.88,2.83324745]
[1756897836495,0.06,210.89,210.87,1.90055354]
[1756897836791,0.78,210.89,210.85,0.03]
[1756897836995,0.78,210.89,210.88,0.03]
[1756897837199,0.78,210.89,210.88,37.21]
[1756897837387,0.06,210.89,210.88,37.21]
[1756897837591,0.06,210.89,210.88,40.04324745]
[1756897839105,0.06,210.89,210.88,40.76324745]
[1756897839888,0.06,210.89,210.88,120.46324745]
[1756897841607,0.06,210.89,210.88,121.32996004]
[1756897841779,0.06,210.89,210.88,79.73]
[1756897841984,0.06,210.89,210.88,121.32996004]
[1756897845910,0.06,210.89,210.88,41.62996004]
[1756897846103,0.06,210.89,210.88,42.31996004]
[1756897846601,0.06,210.89,210.88,41.62996004]
[1756897846904,0.06,210.89,210.88,4.44996004]
[1756897847112,0.06,210.89,210.88,41.62996004]
[1756897850728,0.06,210.89,210.88,42.31996004]
[1756897851800,0.06,210.89,210.88,119.50037295]
[1756897852029,0.06,210.89,210.88,123.92033299]
[1756897852330,0.06,210.89,210.88,57.815927]
[1756897857738,0.06,210.89,210.88,137.515927]
[1756897861728,0.06,210.92,210.91,39.59559401]
[1756897861926,0.06,210.92,210.91,81.17555405]
[1756897862117,0.06,210.92,210.91,81.86555405]
[1756897862436,0.06,210.92,210.91,83.76538544]
[1756897862634,0.06,210.92,210.91,57.76538544]
[1756897863637,0.06,210.92,210.91,137.46538544]
[1756897863839,0.06,210.92,210.91,57.76538544]
[1756897864322,0.06,210.92,210.91,20.60538544]
[1756897864508,0.06,210.92,210.91,57.76538544]
[1756897864724,0.06,210.92,210.91,39.05983139]
[1756897865033,0.06,210.92,210.91,43.47979143]
[1756897865810,0.06,210.92,210.91,44.16979143]
[1756897866018,0.06,210.92,210.91,43.47979143]
[1756897867137,0.77,210.92,210.91,1.89983139]
[1756897867320,0.77,210.92,210.91,36.93979143]
[1756897867830,0.77,210.92,210.91,35.03996004]
[1756897868025,0.06,210.92,210.91,35.03996004]
[1756897868229,0.06,210.92,210.91,49.32555405]
[1756897868641,0.06,210.92,210.91,63.57428948]
[1756897872142,0.06,210.94,210.92,13.59559401]
[1756897872342,0.66,211.05,210.93,59.85983723]
[1756897872642,0.66,211.05,211.04,4.41996004]
[1756897872844,26.0,211.09,211.04,41.55996004]
[1756897873213,30.41996004,211.09,211.04,41.55996004]
[1756897873419,0.66,211.08,211.04,41.55996004]
[1756897873619,0.66,211.07,211.04,41.55996004]
[1756897874238,0.66,211.06,211.04,41.55996004]
[1756897874441,0.66,211.05,211.04,41.55996004]
[1756897875034,26.0,211.09,211.04,41.55996004]
[1756897875236,0.66,211.08,211.04,37.14]
[1756897875539,0.66,211.07,211.05,4.41996004]
[1756897875742,0.66,211.06,211.05,4.41996004]
[1756897876042,0.66,211.06,211.05,41.55996004]
[1756897876240,0.66,211.08,211.05,41.55996004]
[1756897876432,0.66,211.08,211.06,4.41996004]
[1756897876736,26.0,211.13,211.07,42.22996004]
[1756897876737,0.66,211.13,211.07,42.22996004]
[1756897876942,0.66,211.12,211.08,41.55996004]
[1756897877132,0.66,211.11,211.09,37.14]
[1756897877339,0.66,211.1,211.07,4.41996004]
[1756897877537,0.66,211.09,211.08,37.14]
[1756897878939,4.41996004,211.12,211.06,4.41996004]
[1756897879140,0.66,211.09,211.03,14.24197109]
[1756897879322,0.66,211.09,211.05,4.41996004]
[1756897879528,0.66,211.09,211.06,4.41996004]
[1756897879743,0.66,211.09,211.07,37.14]
[1756897881524,0.66,211.09,211.06,4.41996004]
[1756897881745,0.66,211.11,211.07,37.12]
[1756897881931,0.66,211.11,211.07,41.53996004]
[1756897882247,0.66,211.1,211.07,41.53996004]
[1756897882548,0.66,211.12,211.07,41.53996004]
[1756897882748,0.66,211.11,211.07,41.53996004]
[1756897883633,0.66,211.1,211.07,41.53996004]
[1756897884035,0.66,211.1,211.08,37.12]
[1756897885437,0.66,211.1,211.04,4.41996004]
[1756897885438,4.41996004,211.1,211.04,4.41996004]
[1756897885639,4.41996004,211.11,211.05,42.20996004]
[1756897885939,4.41996004,211.11,211.06,37.12]
[1756897886144,0.66,211.1,211.07,37.12]
[1756897886330,0.66,211.09,211.07,37.12]
[1756897886649,4.41996004,211.11,211.07,37.12]
[1756897886848,0.66,211.09,211.08,37.12]
[1756897887039,0.66,211.11,211.08,37.12]
[1756897887238,26.0,211.12,211.08,37.12]
[1756897887239,5.07996004,211.1,211.08,37.12]
[1756897887647,0.66,211.1,211.08,37.12]
[1756897888530,30.41996004,211.12,211.08,37.12]
[1756897888730,4.41996004,211.12,211.08,37.12]
[1756897888938,5.07996004,211.12,211.08,37.12]
[1756897889151,0.06,211.09,211.08,37.12]
[1756897890255,0.06,211.09,211.08,37.79]
[1756897890441,0.06,211.09,211.08,37.12]
[1756897892950,0.06,211.09,211.05,5.08996004]
[1756897893134,0.06,211.09,211.06,42.20996004]
[1756897893538,0.06,211.09,211.07,0.67]
[1756897898946,0.66,211.08,211.03,0.67]
[1756897899154,0.06,211.09,211.04,41.51996004]
[1756897899462,0.06,211.09,211.05,0.67]
[1756897899763,0.06,211.09,211.06,0.67]
[1756897899953,0.06,211.09,211.07,37.1]
[1756897900342,4.41996004,211.08,211.03,0.67]
[1756897900550,0.06,211.09,211.04,37.77]
[1756897900551,4.41996004,211.07,211.04,37.77]